bitfinex/quotes_BTCUSD_20220405
["timestamp","ask_amount","ask_price","bid_price","bid_amount"]
[1649155964084,0.05348453,46657.0,46656.0,0.26796044]
[1649155964284,0.10348453,46657.0,46656.0,0.26796044]
[1649155964484,0.10348453,46657.0,46656.0,0.267532]
[1649155964585,0.10348453,46657.0,46656.0,0.27753384]
[1649155965285,0.05348453,46657.0,46656.0,0.37344684]
[1649155965485,0.05348453,46657.0,46656.0,0.05280184]
[1649155965790,0.05348453,46657.0,46656.0,0.37344684]
[1649155965890,0.05348453,46657.0,46656.0,0.05280184]
[1649155965987,0.05348453,46657.0,46656.0,0.37344684]
[1649155966394,0.05348453,46657.0,46656.0,0.05280184]
[1649155966690,0.05348453,46657.0,46656.0,0.37344684]
[1649155968191,0.05348453,46657.0,46656.0,0.27753384]
[1649155969146,0.05348453,46657.0,46656.0,0.05280184]
[1649155969247,0.05348453,46657.0,46656.0,0.37344684]
[1649155969347,0.05348453,46657.0,46656.0,0.05280184]
[1649155969546,0.05348453,46657.0,46656.0,0.37344684]
[1649155973997,0.05340275,46657.0,46656.0,0.37344684]
[1649155977244,0.05340275,46657.0,46656.0,0.6555339]
[1649155977393,0.05340275,46657.0,46656.0,0.3348889]
[1649155977498,0.05340275,46657.0,46656.0,0.6555339]
[1649155978194,0.05340275,46657.0,46656.0,0.33064684]
[1649155979184,0.05340275,46657.0,46656.0,0.65551798]
[1649155981293,0.05340275,46657.0,46656.0,0.33487298]
[1649155981595,0.05340275,46657.0,46656.0,0.65551798]
[1649155982102,0.05340275,46657.0,46656.0,0.33064684]
[1649155982295,0.05340275,46657.0,46656.0,0.01000184]
[1649155982398,0.05340275,46657.0,46656.0,0.33064684]
[1649155984109,0.10340275,46657.0,46656.0,0.33064684]
[1649155985111,0.05340275,46657.0,46656.0,0.33064684]
[1649155985409,0.05340275,46657.0,46656.0,0.01000184]
[1649155985509,0.05340275,46657.0,46656.0,0.33064684]
[1649155988443,0.05340275,46657.0,46656.0,0.63064684]
[1649155994114,0.10340275,46657.0,46656.0,0.33064684]
[1649155994216,0.10340275,46657.0,46656.0,0.01000184]
[1649155994618,0.10340275,46657.0,46654.0,0.00053288]
[1649155994619,0.02000368,46655.0,46654.0,0.00053288]
[1649155994719,0.02000368,46655.0,46652.0,1.46772878]
[1649155994816,0.07358768,46655.0,46652.0,0.05]
[1649155994919,0.07358768,46655.0,46654.0,0.00052534]
[1649155995020,0.07000368,46655.0,46654.0,0.00052534]
[1649155995119,0.18075468,46655.0,46654.0,0.00052534]
[1649155995869,0.18075468,46655.0,46651.0,5.26292844]
[1649155996222,0.18075468,46655.0,46652.0,0.00052535]
[1649155997127,0.18075468,46655.0,46651.0,5.26292844]
[1649155997323,0.18075468,46655.0,46651.0,5.26345455]
[1649155997650,0.28792368,46655.0,46651.0,5.26345455]
[1649155997842,0.05,46654.0,46651.0,5.26345455]
[1649155997996,0.053585,46653.0,46651.0,5.26345455]
[1649155998094,0.31689371,46653.0,46651.0,5.26345455]
[1649155998345,0.31689371,46653.0,46651.0,5.26292844]
[1649156000197,0.47766671,46653.0,46651.0,5.26292844]
[1649156005182,0.214358,46653.0,46651.0,5.26292844]
[1649156011996,0.214358,46653.0,46651.0,4.95139644]
[1649156012497,0.214358,46653.0,46651.0,4.64281544]
[1649156013040,0.214358,46653.0,46651.0,4.32531944]
[1649156013539,0.214358,46653.0,46651.0,4.01528644]
[1649156038457,0.2142632,46653.0,46651.0,4.01528644]
[1649156041437,0.2142632,46653.0,46651.0,3.54525376]
[1649156042486,0.2142632,46653.0,46651.0,3.23579776]
[1649156042998,0.2142632,46653.0,46651.0,2.91884576]
[1649156043399,0.3,46652.0,46651.0,2.91884576]
[1649156043702,0.35,46652.0,46651.0,2.91884576]
[1649156046206,0.05,46652.0,46651.0,2.91884576]
[1649156046457,0.2642632,46653.0,46651.0,2.91884576]
[1649156056566,0.103585,46653.0,46651.0,2.91884576]
[1649156066321,0.10346548,46653.0,46651.0,2.91884576]
[1649156076302,0.10346548,46653.0,46651.0,2.44880624]
[1649156084789,0.10346548,46653.0,46652.0,0.01084081]
[1649156085186,0.10346548,46653.0,46652.0,0.16453722]
[1649156085689,0.09311894,46653.0,46652.0,0.16453722]
[1649156086888,0.09311894,46653.0,46651.0,2.75509495]
[1649156086989,0.03953394,46653.0,46651.0,2.75509495]
[1649156087291,0.210741,46654.0,46651.0,2.75509495]
[1649156088086,0.107159,46653.0,46651.0,2.75509495]
[1649156088386,0.107159,46653.0,46652.0,0.21944596]
[1649156092583,0.107159,46653.0,46651.0,2.49160624]
[1649156092732,0.107159,46653.0,46652.0,0.01084046]
[1649156093536,0.210741,46654.0,46652.0,0.01084046]
[1649156093635,0.210741,46654.0,46651.0,2.75509495]
[1649156094041,0.210741,46654.0,46652.0,0.320645]
[1649156094191,0.210741,46654.0,46653.0,0.0428]
[1649156094287,0.157157,46654.0,46651.0,2.44880624]
[1649156094388,0.157157,46654.0,46653.0,0.363445]
[1649156094489,0.157157,46654.0,46653.0,0.0428]
[1649156094688,0.157157,46654.0,46653.0,0.363445]
[1649156094891,0.157157,46654.0,46653.0,0.0428]
[1649156095091,0.157157,46654.0,46653.0,0.363445]
[1649156095725,0.157157,46654.0,46653.0,0.0428]
[1649156096075,0.157157,46654.0,46653.0,0.363445]
[1649156096178,0.157157,46654.0,46653.0,0.0428]
[1649156097077,0.157157,46654.0,46653.0,0.363445]
[1649156097327,0.157157,46654.0,46653.0,0.0428]
[1649156098929,0.157157,46654.0,46653.0,0.0407]
[1649156101674,0.157157,46654.0,46653.0,0.361345]
[1649156101776,0.05,46654.0,46653.0,0.361345]
[1649156101977,0.05,46654.0,46653.0,0.0407]
[1649156102080,0.05,46654.0,46653.0,0.361345]
[1649156103028,0.05,46654.0,46653.0,0.661345]
[1649156103632,0.05,46654.0,46653.0,0.3407]
[1649156103731,0.05,46654.0,46653.0,0.0407]
[1649156105488,0.05,46654.0,46653.0,0.361345]
[1649156105584,0.05,46654.0,46653.0,0.0407]
[1649156106843,0.05,46654.0,46653.0,0.361345]
[1649156107093,0.05,46654.0,46653.0,0.0407]
[1649156107393,0.05,46654.0,46653.0,0.361345]
[1649156107493,0.05,46654.0,46653.0,0.0407]
[1649156107794,0.31898391,46654.0,46653.0,0.0407]
[1649156108094,0.31898391,46654.0,46653.0,0.361345]
[1649156108196,0.31898391,46654.0,46653.0,0.0407]
[1649156109097,0.31898391,46654.0,46653.0,0.05154057]
[1649156109198,0.31898391,46654.0,46653.0,0.0407]
[1649156109450,0.31898391,46654.0,46651.0,2.44933272]
[1649156109451,0.07139889,46652.0,46651.0,2.44933272]
[1649156109552,0.07139889,46652.0,46651.0,2.49719406]
[1649156109649,0.38716264,46652.0,46651.0,2.49719406]
[1649156109850,0.33512359,46652.0,46651.0,2.49719406]
[1649156110050,0.33512359,46652.0,46651.0,2.49666758]
[1649156111787,0.33512359,46652.0,46651.0,2.53946758]
[1649156117582,0.33512359,46652.0,46651.0,2.49666758]
[1649156124438,0.33512359,46652.0,46651.0,2.17881858]
[1649156124939,0.33512359,46652.0,46651.0,1.55761558]
[1649156125176,0.33512359,46652.0,46651.0,1.55261558]
[1649156125478,0.33512359,46652.0,46651.0,1.24402458]
[1649156125834,0.33512359,46652.0,46651.0,1.24383458]
[1649156126029,0.33512359,46652.0,46651.0,0.93779258]
[1649156126530,0.33512359,46652.0,46651.0,0.62578058]
[1649156128346,0.33512359,46652.0,46651.0,0.89856424]
[1649156128436,0.33512359,46652.0,46651.0,0.94642558]
[1649156128534,0.33512359,46652.0,46651.0,0.57791924]
[1649156128637,0.33512359,46652.0,46651.0,0.80827804]
[1649156129962,0.33512359,46652.0,46651.0,0.58875981]
[1649156135349,0.12139889,46652.0,46651.0,0.58875981]
[1649156136426,0.07591306,46652.0,46651.0,0.58875981]
[1649156136483,0.07139889,46652.0,46651.0,0.58875981]
[1649156138182,0.12139889,46652.0,46651.0,0.58875981]
[1649156139483,0.07139889,46652.0,46651.0,0.58875981]
[1649156141209,0.12139889,46652.0,46651.0,0.58875981]
[1649156143409,0.12139889,46652.0,46651.0,0.27026181]
[1649156145843,0.12139889,46652.0,46651.0,0.48978004]
[1649156145945,0.12139889,46652.0,46651.0,0.27026181]
[1649156146145,0.12139889,46652.0,46651.0,0.48978004]
[1649156146298,0.12139889,46652.0,46651.0,0.27026181]
[1649156147784,0.12139889,46652.0,46651.0,0.48978004]
[1649156149743,0.160736,46658.0,46651.0,0.48978004]
[1649156149744,0.85399992,46662.0,46659.0,0.17860111]
[1649156149842,0.49686644,46660.0,46659.0,0.17860111]
[1649156150041,0.59905115,46660.0,46659.0,0.17860111]
[1649156150995,0.320645,46660.0,46659.0,0.17860111]
[1649156151641,0.49688115,46660.0,46659.0,0.17860111]
[1649156152389,0.320645,46660.0,46659.0,0.17860111]
[1649156152893,0.49688352,46660.0,46659.0,0.17860111]
[1649156154143,0.320645,46660.0,46659.0,0.17860111]
[1649156156043,0.49689062,46660.0,46659.0,0.17860111]
[1649156156240,0.320645,46660.0,46659.0,0.17860111]
[1649156160196,0.49690027,46660.0,46659.0,0.17860111]
[1649156161245,0.320645,46660.0,46659.0,0.17860111]
[1649156161846,0.4969008,46660.0,46659.0,0.17860111]
[1649156161948,0.49690079,46660.0,46659.0,0.17860111]
[1649156162048,0.320645,46660.0,46659.0,0.17860111]
[1649156162148,0.49690082,46660.0,46659.0,0.17860111]
[1649156162349,0.320645,46660.0,46659.0,0.17860111]
[1649156162710,0.49690028,46660.0,46659.0,0.17860111]
[1649156162811,0.320645,46660.0,46659.0,0.17860111]
[1649156162914,0.49690058,46660.0,46659.0,0.17860111]
[1649156164268,0.320645,46660.0,46659.0,0.17860111]
[1649156164365,0.49689798,46660.0,46659.0,0.17860111]
[1649156164815,0.320645,46660.0,46659.0,0.17860111]
[1649156165219,0.49689749,46660.0,46659.0,0.17860111]
[1649156167291,0.320645,46660.0,46659.0,0.17860111]
[1649156168297,0.49689623,46660.0,46659.0,0.17860111]
[1649156169551,0.07994981,46656.0,46655.0,0.17562425]
[1649156169749,0.07994981,46656.0,46655.0,0.42387505]
[1649156170286,0.07994981,46656.0,46655.0,0.17562425]
[1649156173648,0.07994981,46656.0,46655.0,0.40461312]
[1649156174191,0.07994981,46656.0,46655.0,0.17562425]
[1649156174393,0.06994981,46656.0,46655.0,0.17562425]
[1649156175491,0.24562134,46660.0,46655.0,0.17562425]
[1649156175693,0.02717217,46660.0,46655.0,0.17562425]
[1649156175792,0.320645,46659.0,46655.0,0.17562425]
[1649156175993,0.320645,46659.0,46653.0,0.00055568]
[1649156176095,0.5500802,46661.0,46652.0,0.21951823]
[1649156176192,0.320645,46660.0,46652.0,0.23023823]
[1649156176296,0.320645,46660.0,46654.0,0.00055568]
[1649156176697,0.320645,46658.0,46654.0,0.00055568]
[1649156176795,0.6209911,46658.0,46654.0,0.00055568]
[1649156177297,0.6209911,46658.0,46652.0,0.21951823]
[1649156177298,0.3003461,46658.0,46652.0,0.21951823]
[1649156177498,0.320645,46657.0,46654.0,0.00055578]
[1649156177597,0.5633607,46658.0,46654.0,0.00055578]
[1649156177739,0.320645,46657.0,46654.0,0.00055578]
[1649156177990,0.5633607,46658.0,46654.0,0.00055578]
[1649156178086,0.320645,46657.0,46654.0,0.00055578]
[1649156178187,0.5633607,46658.0,46654.0,0.00055578]
[1649156178387,0.320645,46657.0,46654.0,0.00055578]
[1649156178487,0.5633607,46658.0,46652.0,0.21951823]
[1649156178687,0.320645,46657.0,46654.0,0.00055578]
[1649156178792,0.5633607,46658.0,46654.0,0.00055578]
[1649156178890,0.320645,46657.0,46654.0,0.00055578]
[1649156179139,0.5633607,46658.0,46654.0,0.00055578]
[1649156179239,0.320645,46657.0,46654.0,0.00055578]
[1649156179641,0.320645,46657.0,46652.0,0.21951823]
[1649156179841,0.6705307,46658.0,46653.0,0.00055578]
[1649156180344,0.320645,46657.0,46651.0,0.50245089]
[1649156180445,0.6705307,46658.0,46651.0,0.51317089]
[1649156180544,0.6705307,46658.0,46651.0,0.50245089]
[1649156180844,0.320645,46657.0,46651.0,0.47237055]
[1649156180945,0.6705307,46658.0,46651.0,0.47237055]
[1649156181195,0.320645,46657.0,46651.0,0.47237055]
[1649156181740,0.6705307,46658.0,46651.0,0.47237055]
[1649156181940,0.320645,46657.0,46651.0,0.47237055]
[1649156182046,0.6705307,46658.0,46651.0,0.47237055]
[1649156182143,0.370645,46657.0,46651.0,0.47237055]
[1649156182241,0.370645,46657.0,46651.0,0.47273772]
[1649156182346,0.053584,46656.0,46651.0,0.47273772]
[1649156183293,0.053584,46656.0,46651.0,0.47237055]
[1649156183494,0.053584,46656.0,46651.0,0.47273772]
[1649156184049,0.24204631,46655.0,46651.0,0.47273772]
[1649156184246,0.053584,46656.0,46651.0,0.47273772]
[1649156184496,0.053584,46656.0,46651.0,0.47237055]
[1649156184697,0.053584,46656.0,46651.0,0.47296521]
[1649156185539,0.320645,46655.0,46654.0,0.17565215]
[1649156185838,0.053584,46656.0,46653.0,0.17565215]
[1649156187039,0.053584,46656.0,46654.0,0.17565215]
[1649156187693,0.320645,46655.0,46654.0,0.17565215]
[1649156187794,0.053584,46656.0,46654.0,0.17565215]
[1649156187895,0.320645,46655.0,46653.0,0.17565215]
[1649156187994,0.3442412,46656.0,46653.0,0.17565215]
[1649156188646,0.053584,46656.0,46653.0,0.17565215]
[1649156191654,0.320645,46655.0,46653.0,0.17565215]
[1649156191749,0.053584,46656.0,46653.0,0.17565215]
[1649156192049,0.320645,46655.0,46653.0,0.17565215]
[1649156192549,0.053584,46656.0,46653.0,0.17565215]
[1649156193518,0.320645,46655.0,46653.0,0.17565215]
[1649156193592,0.053584,46656.0,46653.0,0.17565215]
[1649156193694,0.053584,46656.0,46652.0,0.17565215]
[1649156193795,0.053584,46656.0,46653.0,0.17565215]
[1649156193894,0.320645,46655.0,46653.0,0.17565215]
[1649156193994,0.053584,46656.0,46653.0,0.17565215]
[1649156194245,0.053584,46656.0,46652.0,0.17565215]
[1649156194348,0.053584,46656.0,46654.0,0.17565215]
[1649156195197,0.05,46657.0,46654.0,0.17565215]
[1649156195397,0.05,46657.0,46655.0,0.22846496]
[1649156195500,0.22626121,46659.0,46655.0,0.22846496]
[1649156195698,0.00055695,46658.0,46655.0,0.22846496]
[1649156196101,0.00055695,46658.0,46655.0,0.40411711]
[1649156196544,0.22626121,46660.0,46655.0,0.40411711]
[1649156196641,0.17626121,46661.0,46656.0,0.17565215]
[1649156196742,0.80502833,46662.0,46657.0,0.17565215]
[1649156196841,0.00055694,46659.0,46657.0,0.17565215]
[1649156197844,0.62876712,46662.0,46657.0,0.17565215]
[1649156197944,0.00055679,46660.0,46657.0,0.17565215]
[1649156198046,0.00055679,46660.0,46656.0,0.17565215]
[1649156198900,0.85859633,46662.0,46656.0,0.17565215]
[1649156198998,0.17626121,46661.0,46656.0,0.17565215]
[1649156199145,0.00055679,46660.0,46656.0,0.17565215]
[1649156199648,0.00055679,46660.0,46655.0,0.27126496]
[1649156200003,0.00055679,46660.0,46656.0,0.17562064]
[1649156200099,0.17624404,46661.0,46656.0,0.17561949]
[1649156200241,0.17624402,46661.0,46656.0,0.17561674]
[1649156200342,0.00055637,46660.0,46655.0,0.0428]
[1649156200440,0.00055637,46660.0,46656.0,0.17562007]
[1649156200539,0.00055637,46660.0,46656.0,0.17561982]
[1649156200640,0.00055637,46660.0,46655.0,0.17562062]
[1649156200741,0.00055637,46660.0,46655.0,0.1756217]
[1649156200840,0.00055637,46660.0,46654.0,0.01072]
[1649156201044,0.00055637,46660.0,46655.0,0.17562682]
[1649156201344,0.47659148,46661.0,46653.0,0.01072]
[1649156201440,0.47647534,46661.0,46655.0,0.27787749]
[1649156201539,0.00055639,46660.0,46655.0,0.45350275]
[1649156201642,0.00055639,46660.0,46655.0,0.45350064]
[1649156201741,0.00055639,46660.0,46655.0,0.27787749]
[1649156201842,0.00055639,46660.0,46655.0,0.45350061]
[1649156201941,0.00055639,46660.0,46655.0,0.45349881]
[1649156202089,0.00055639,46660.0,46655.0,0.45349827]
[1649156202190,0.00055639,46660.0,46655.0,0.27787749]
[1649156202391,0.00055639,46660.0,46655.0,0.4534983]
[1649156202492,0.98268122,46662.0,46655.0,0.45349836]
[1649156202597,0.17624336,46661.0,46655.0,0.27787749]
[1649156202692,0.00055639,46660.0,46653.0,0.21951823]
[1649156202795,0.00055639,46660.0,46655.0,0.17562098]
[1649156202894,0.00055639,46660.0,46653.0,0.23023823]
[1649156203297,0.00055639,46660.0,46655.0,0.17562859]
[1649156203402,0.00055639,46660.0,46653.0,0.23023823]
[1649156203497,0.05413639,46660.0,46653.0,0.01072]
[1649156203598,0.053578,46659.0,46655.0,0.17563628]
[1649156203694,0.01110492,46659.0,46655.0,0.17563618]
[1649156204045,0.01166173,46659.0,46655.0,0.17563618]
[1649156204946,0.01110492,46659.0,46655.0,0.17563618]
[1649156205150,0.01166174,46659.0,46655.0,0.17563618]
[1649156206153,0.01110492,46659.0,46655.0,0.17563618]
[1649156206353,0.01166174,46659.0,46655.0,0.17563618]
[1649156206454,0.01166174,46659.0,46656.0,0.320645]
[1649156206555,0.00055682,46659.0,46656.0,0.58296323]
[1649156206655,0.00055682,46659.0,46658.0,0.224721]
[1649156206754,0.00055682,46659.0,46658.0,0.44423923]
[1649156206903,0.00055682,46659.0,46658.0,0.267521]
[1649156207004,0.00055682,46659.0,46658.0,0.43205822]
[1649156207101,0.00055682,46659.0,46658.0,0.267521]
[1649156207205,0.00055682,46659.0,46658.0,0.27836006]
[1649156207403,0.62876712,46662.0,46658.0,0.27836006]
[1649156207503,0.62876712,46662.0,46660.0,0.17561269]
[1649156207604,0.62876712,46662.0,46661.0,0.23619931]
[1649156207746,0.62876712,46662.0,46661.0,0.0428]
[1649156211693,0.62876712,46662.0,46657.0,0.17561269]
[1649156212193,0.62876712,46662.0,46659.0,0.26258692]
[1649156212292,0.62876712,46662.0,46657.0,0.17561269]
[1649156212395,0.6293391,46662.0,46657.0,0.17561269]
[1649156213444,0.62876712,46662.0,46657.0,0.17561269]
[1649156213545,0.6293391,46662.0,46657.0,0.17561269]
[1649156213894,0.6293391,46662.0,46658.0,0.23666067]
[1649156214144,0.6293391,46662.0,46657.0,0.17561269]
[1649156214544,0.62876712,46662.0,46657.0,0.17561269]
[1649156214744,0.6293391,46662.0,46657.0,0.17561269]
[1649156215191,0.6293391,46662.0,46656.0,0.17561269]
[1649156215291,0.24450674,46661.0,46656.0,0.44995928]
[1649156215394,0.107145,46660.0,46657.0,0.320645]
[1649156215490,0.107145,46660.0,46656.0,0.44995928]
[1649156215590,0.107145,46660.0,46657.0,0.320645]
[1649156215792,0.107145,46660.0,46658.0,0.224706]
[1649156215893,0.107145,46660.0,46657.0,0.17561269]
[1649156216046,0.1077004,46660.0,46657.0,0.320645]
[1649156216143,0.1077004,46660.0,46656.0,0.44995928]
[1649156216342,0.1077004,46660.0,46657.0,0.320645]
[1649156216646,0.1077004,46660.0,46656.0,0.44995928]
[1649156216746,0.1077004,46660.0,46657.0,0.17561269]
[1649156216998,0.107145,46660.0,46657.0,0.17561269]
[1649156217198,0.1077004,46660.0,46658.0,0.320645]
[1649156217295,0.1077004,46660.0,46657.0,0.17561269]
[1649156218147,0.107145,46660.0,46657.0,0.17561269]
[1649156218347,0.107145,46660.0,46656.0,0.44995928]
[1649156218547,0.107145,46660.0,46657.0,0.320645]
[1649156218749,0.107145,46660.0,46656.0,0.44995928]
[1649156219049,0.107145,46660.0,46657.0,0.320645]
[1649156219601,0.107145,46660.0,46658.0,0.320645]
[1649156219700,0.107145,46660.0,46656.0,0.44995928]
[1649156219901,0.107145,46660.0,46657.0,0.320645]
[1649156220002,0.107145,46660.0,46656.0,0.44995928]
[1649156220203,0.107145,46660.0,46657.0,0.320645]
[1649156220303,0.107145,46660.0,46656.0,0.44995928]
[1649156220705,0.107145,46660.0,46657.0,0.320645]
[1649156220805,0.10770154,46660.0,46656.0,0.44995928]
[1649156220906,0.10770154,46660.0,46657.0,0.320645]
[1649156221257,0.10770154,46660.0,46656.0,0.44995928]
[1649156221357,0.10770154,46660.0,46657.0,0.320645]
[1649156221467,0.10770154,46660.0,46656.0,0.44995928]
[1649156221758,0.107145,46660.0,46656.0,0.44995928]
[1649156221958,0.10770145,46660.0,46656.0,0.44995928]
[1649156222693,0.10770145,46660.0,46657.0,0.320645]
[1649156222787,0.10770145,46660.0,46656.0,0.44995928]
[1649156222888,0.107145,46660.0,46657.0,0.320645]
[1649156222988,0.107145,46660.0,46656.0,0.44995928]
[1649156223091,0.107145,46660.0,46657.0,0.320645]
[1649156223189,0.107145,46660.0,46656.0,0.44995928]
[1649156223287,0.107145,46660.0,46657.0,0.320645]
[1649156223438,0.107145,46660.0,46656.0,0.44995928]
[1649156223538,0.107145,46660.0,46657.0,0.320645]
[1649156223838,0.107145,46660.0,46656.0,0.44995928]
[1649156224240,0.107145,46660.0,46656.0,0.49995928]
[1649156224392,0.10770145,46660.0,46656.0,0.49995928]
[1649156224492,0.10770145,46660.0,46657.0,0.320645]
[1649156224641,0.10770145,46660.0,46656.0,0.49995928]
[1649156224791,0.10770145,46660.0,46657.0,0.17561269]
[1649156225393,0.107145,46660.0,46657.0,0.17561269]
[1649156225490,0.68233912,46662.0,46657.0,0.17561269]
[1649156225595,0.053571,46660.0,46658.0,0.224705]
[1649156225696,0.053571,46660.0,46657.0,0.17561269]
[1649156225843,0.053571,46660.0,46658.0,0.320645]
[1649156231465,0.05345209,46660.0,46658.0,0.320645]
[1649156232313,0.05345209,46660.0,46658.0,0.49625769]
[1649156233765,0.21270978,46662.0,46658.0,0.320645]
[1649156233942,0.21270978,46662.0,46658.0,0.17560537]
[1649156233998,0.00054781,46661.0,46659.0,0.320645]
[1649156234499,0.00054781,46661.0,46658.0,0.22560537]
[1649156234648,0.053571,46660.0,46658.0,0.22560537]
[1649156234749,0.053571,46660.0,46659.0,0.320645]
[1649156238094,0.053571,46660.0,46659.0,0.49625037]
[1649156239143,0.053571,46660.0,46659.0,0.54625037]
[1649156239345,0.053571,46660.0,46659.0,0.22560537]
[1649156239444,0.053571,46660.0,46659.0,0.54625037]
[1649156239845,0.053571,46660.0,46659.0,0.22560537]
[1649156240647,0.36985478,46662.0,46659.0,0.22560537]
[1649156242179,0.31985478,46662.0,46659.0,0.22560537]
[1649156242579,0.31985478,46662.0,46660.0,0.35072198]
[1649156242728,0.31985478,46662.0,46660.0,0.03007698]
[1649156242729,0.21270978,46662.0,46660.0,0.03007698]
[1649156244433,0.21270978,46662.0,46660.0,1.35518799]
[1649156244532,0.21270978,46662.0,46660.0,1.53079336]
[1649156245299,0.21270978,46662.0,46660.0,1.35518799]
[1649156247504,0.21270978,46662.0,46660.0,1.53079336]
[1649156250176,0.26270978,46662.0,46660.0,1.53079336]
[1649156250627,0.26270978,46662.0,46660.0,1.35518799]
[1649156250730,0.26270978,46662.0,46660.0,1.53087742]
[1649156251177,0.21270978,46662.0,46660.0,1.53087742]
[1649156252133,0.21270978,46662.0,46661.0,0.17568943]
[1649156254077,0.21270978,46662.0,46660.0,1.53087742]
[1649156254927,0.21270978,46662.0,46661.0,0.49633443]
[1649156255030,0.21270978,46662.0,46661.0,0.17568943]
[1649156257146,0.21270978,46662.0,46660.0,1.53087742]
[1649156257447,0.21270978,46662.0,46661.0,0.320645]
[1649156257548,0.21270978,46662.0,46660.0,1.53087742]
[1649156260213,0.21270978,46662.0,46660.0,1.53077742]
[1649156261269,0.21270978,46662.0,46661.0,0.320645]
[1649156261367,0.21270978,46662.0,46660.0,1.53077742]
[1649156261467,0.21270978,46662.0,46661.0,0.320645]
[1649156261566,0.21270978,46662.0,46660.0,1.53077742]
[1649156261666,0.21270978,46662.0,46661.0,0.320645]
[1649156261767,0.21270978,46662.0,46660.0,1.53077742]
[1649156261866,0.21270978,46662.0,46661.0,0.320645]
[1649156262017,0.21270978,46662.0,46661.0,0.17568943]
[1649156262118,0.26270978,46662.0,46661.0,0.17568943]
[1649156262922,0.26270978,46662.0,46660.0,1.35508799]
[1649156263077,0.26270978,46662.0,46661.0,0.17569512]
[1649156263724,0.03334394,46663.0,46661.0,0.17569512]
[1649156263827,0.03334394,46663.0,46661.0,0.17570973]
[1649156265923,0.03334394,46663.0,46661.0,0.320645]
[1649156266023,0.03334394,46663.0,46661.0,0.17570973]
[1649156266176,0.03334394,46663.0,46660.0,1.53079772]
[1649156266276,0.08691594,46663.0,46660.0,1.53079772]
[1649156267381,0.2631834,46663.0,46660.0,1.53079772]
[1649156270164,0.05,46662.0,46660.0,1.53079772]
[1649156274667,0.05,46662.0,46661.0,0.320645]
[1649156274770,0.05,46662.0,46660.0,1.53079772]
[1649156274867,0.05,46662.0,46661.0,0.320645]
[1649156274967,0.05,46662.0,46660.0,1.53079772]
[1649156275528,0.05,46662.0,46661.0,0.320645]
[1649156275932,0.05,46662.0,46660.0,1.53079772]
[1649156276232,0.05,46662.0,46661.0,0.320645]
[1649156276432,0.05,46662.0,46660.0,1.53079772]
[1649156276536,0.05,46662.0,46661.0,0.224668]
[1649156276634,0.05,46662.0,46660.0,1.53079772]
[1649156278236,0.05,46662.0,46660.0,1.35508799]
[1649156278536,0.05,46662.0,46660.0,1.53079772]
[1649156278636,0.05,46662.0,46660.0,1.35508799]
[1649156278837,0.05,46662.0,46660.0,1.53079772]
[1649156279351,0.05,46662.0,46660.0,1.35508799]
[1649156279555,0.22626746,46662.0,46660.0,1.35508799]
[1649156279853,0.05,46662.0,46660.0,1.35508799]
[1649156280705,0.05,46662.0,46660.0,1.53079772]
[1649156280804,0.05,46662.0,46660.0,1.35508799]
[1649156281662,0.05,46662.0,46660.0,1.53079772]
[1649156281907,0.05,46662.0,46660.0,1.35508799]
[1649156282110,0.05,46662.0,46660.0,1.53079772]
[1649156282307,0.05,46662.0,46660.0,1.35508799]
[1649156282506,0.05,46662.0,46660.0,1.53079772]
[1649156282802,0.05,46662.0,46661.0,0.3]
[1649156282904,0.05,46662.0,46661.0,0.620645]
[1649156283004,0.05,46664.0,46661.0,0.620645]
[1649156283103,0.22626746,46666.0,46662.0,0.224662]
[1649156283305,0.00058062,46663.0,46662.0,0.274662]
[1649156283553,0.00058062,46663.0,46662.0,0.53820468]
[1649156283652,0.00058062,46663.0,46662.0,0.9403092]
[1649156283755,0.17626746,46671.0,46663.0,0.00019209]
[1649156283852,0.17626746,46671.0,46667.0,0.17580433]
[1649156283956,0.17626746,46671.0,46667.0,0.22936265]
[1649156283957,0.22626746,46671.0,46667.0,0.22936265]
[1649156284056,0.17626746,46670.0,46666.0,0.17580433]
[1649156284157,0.27826014,46669.0,46666.0,0.17580433]
[1649156284264,0.17626746,46667.0,46663.0,0.17599642]
[1649156284357,0.77513226,46666.0,46663.0,0.17599642]
[1649156284459,0.49691246,46665.0,46663.0,0.00019209]
[1649156284556,0.17626746,46665.0,46663.0,0.00019209]
[1649156284756,0.22626746,46665.0,46663.0,0.00019209]
[1649156285055,0.25185231,46664.0,46663.0,0.00019209]
[1649156285209,0.57249731,46664.0,46663.0,0.00019209]
[1649156285610,0.25185231,46664.0,46663.0,0.00019209]
[1649156286584,0.42811977,46664.0,46663.0,0.00019209]
[1649156287193,0.25185231,46664.0,46663.0,0.00019209]
[1649156287587,0.42811977,46664.0,46663.0,0.00019209]
[1649156287688,0.25185231,46664.0,46663.0,0.00019209]
[1649156288388,0.42811977,46664.0,46663.0,0.00019209]
[1649156288538,0.25185231,46664.0,46663.0,0.00019209]
[1649156288739,0.42811977,46664.0,46663.0,0.00019209]
[1649156289843,0.25185231,46664.0,46663.0,0.00019209]
[1649156290507,0.42811977,46664.0,46663.0,0.00019209]
[1649156290709,0.25185231,46664.0,46663.0,0.00019209]
[1649156292110,0.42811977,46664.0,46663.0,0.00019209]
[1649156292911,0.25185231,46664.0,46663.0,0.00019209]
[1649156293010,0.27984446,46665.0,46663.0,0.00019209]
[1649156293212,0.17626746,46664.0,46663.0,0.00019209]
[1649156293411,0.27984446,46665.0,46663.0,0.00019209]
[1649156295257,0.320645,46664.0,46663.0,0.00019209]
[1649156295406,0.27984446,46665.0,46663.0,0.00019209]
[1649156298672,0.103577,46665.0,46663.0,0.00019209]
[1649156303672,0.27984446,46665.0,46663.0,0.00019209]
[1649156304730,0.103577,46665.0,46663.0,0.00019209]
[1649156305453,0.27984446,46665.0,46663.0,0.00019209]
[1649156305654,0.103577,46665.0,46663.0,0.00019209]
[1649156307606,0.05,46665.0,46663.0,0.00019209]
[1649156307707,0.17682339,46666.0,46663.0,0.00019209]
[1649156307808,0.22682339,46666.0,46663.0,0.00019209]
[1649156308158,0.22626746,46666.0,46663.0,0.00019209]
[1649156310636,0.05,46666.0,46663.0,0.00019209]
[1649156310741,0.22626746,46667.0,46663.0,0.00019209]
[1649156310833,0.22682168,46667.0,46663.0,0.00019209]
[1649156311387,0.17626746,46666.0,46663.0,0.00019209]
[1649156312038,0.17583599,46666.0,46663.0,0.00019209]
[1649156312805,0.05055422,46667.0,46663.0,0.00019209]
[1649156313007,0.05,46668.0,46663.0,0.00019209]
[1649156313306,0.00055422,46667.0,46663.0,0.00019209]
[1649156313907,0.70530539,46665.0,46663.0,0.00019209]